fUSD/lending_fUSD_20260517
["ID","MTS","AMOUNT","RATE_DAILY","PERIOD"]
[422490414,1778993447000,-500.0,0.00024645,2]
[422490398,1778993447000,-500.0,0.00024645,2]
[422490412,1778993447000,-514.23113137,0.00024645,2]
[422490436,1778993447000,-151.0,0.00024843,7]
[422490394,1778993447000,-500.0,0.00024645,2]
[422490396,1778993447000,-500.0,0.00024645,2]
[422490397,1778993447000,-500.0,0.00024645,2]
[422490395,1778993447000,-500.0,0.00024645,2]
[422490399,1778993447000,-500.0,0.00024645,2]
[422490400,1778993447000,-443.35815162,0.00024645,2]
[422490401,1778993447000,-500.0,0.00024645,2]
[422490403,1778993447000,-500.0,0.00024645,2]
[422490402,1778993447000,-500.0,0.00024645,2]
[422490404,1778993447000,-523.84162786,0.00024645,2]
[422490406,1778993447000,-500.0,0.00024645,2]
[422490407,1778993447000,-407.36389492,0.00024645,2]
[422490409,1778993447000,-500.0,0.00024645,2]
[422490411,1778993447000,-500.0,0.00024645,2]
[422490408,1778993447000,-500.0,0.00024645,2]
[422490410,1778993447000,-500.0,0.00024645,2]
[422490413,1778993447000,-449.03382431,0.00024645,2]
[422490439,1778993447000,-14412.0770176,0.00024846,2]
[422490405,1778993447000,-500.0,0.00024645,2]
[422490433,1778993447000,-152.0,0.0002475,2]
[422490479,1778993447000,-411.36189304,0.00025236,2]
[422490481,1778993447000,-311.07665475,0.00025236,2]
[422490489,1778993447000,-1129.86403654,0.00025236,2]
[422490508,1778993447000,150.0,0.00021134,2]
[422490514,1778993447000,-2302.95831918,0.00025236,2]
[422490539,1778993447000,-273.20617044,0.00025397,2]
[422490525,1778993447000,-208.48490792,0.0002531,2]
[422490527,1778993447000,-215.0785988,0.0002531,2]
[422490472,1778993447000,-200.0,0.00025094,2]
[422490517,1778993447000,-27.76129846,0.00025236,2]
[422490521,1778993447000,-163.7787404,0.000253,2]
[422490519,1778993447000,-157.49,0.00025299,2]
[422490529,1778993447000,-160.0,0.0002531,2]
[422490533,1778993447000,-200.0,0.00025345,2]
[422490531,1778993447000,-200.0,0.00025345,2]
[422490535,1778993447000,-166.66,0.00025395,2]
[422490537,1778993447000,-1419.25283343,0.00025397,2]
[422490434,1778993447000,-1600.0,0.000248,9]
[422490523,1778993447000,-1372.49878924,0.000253,2]
[422490468,1778993447000,-832.20764941,0.00025041,2]
[422490485,1778993447000,-316.64015729,0.00025236,2]
[422490474,1778993447000,-157.0,0.00025233,2]
[422490442,1778993447000,-37176.44562321,0.00024846,2]
[422490443,1778993447000,-273178.01404747,0.00024846,2]
[422490444,1778993447000,-596.298,0.00024554,2]
[422490445,1778993447000,-3554.53620898,0.00024554,2]
[422490446,1778993447000,-3559.46392282,0.00024846,2]
[422490466,1778993447000,-556.67946493,0.00025041,2]
[422490450,1778993447000,-179.86,0.00025,2]
[422490448,1778993447000,-370.74977537,0.00024905,2]
[422490449,1778993447000,-179.85,0.00025,2]
[422490447,1778993447000,-2000.0,0.000249,9]
[422490454,1778993447000,-286.19440823,0.00025,2]
[422490452,1778993447000,-197.0979994,0.00025,2]
[422490457,1778993447000,-166.0,0.00025,2]
[422490459,1778993447000,-204.49820234,0.00025,2]
[422490461,1778993447000,-2000.0,0.0002502,2]
[422490464,1778993447000,-3243.85007488,0.00025041,2]
[422490476,1778993447000,-184.2035182,0.00025236,2]
[422490470,1778993447000,-200.0,0.00025094,2]
[422490455,1778993447000,-397.62933107,0.00025,2]
[422490548,1778993448000,-4683.86587746,0.00025734,2]
[422490549,1778993448000,-797.61,0.00025786,2]
[422490547,1778993448000,-248.0,0.00025695,2]
[422490546,1778993448000,-1372.49878924,0.000256,2]
[422490545,1778993448000,-200.0,0.00025599,2]
[422490541,1778993448000,-152.0,0.00025526,3]
[422490542,1778993448000,-4632.73718922,0.00025537,2]
[422490550,1778993448000,-1599.71,0.00025786,2]
[422490544,1778993448000,-200.0,0.00025599,2]
[422490551,1778993448000,-1197.79004816,0.000258,2]
[422490543,1778993448000,-1957.71884706,0.00025571,2]
[422490552,1778993448000,-174.70874108,0.000258,2]
[422490564,1778993448000,4850.01,0.00024074,2]
[422490562,1778993448000,-2004.0,0.00025999,2]
[422490561,1778993448000,-350.625,0.00025999,2]
[422490560,1778993448000,-6537.63372727,0.00025999,2]
[422490559,1778993448000,-152.16229486,0.00025999,2]
[422490553,1778993448000,-200.0,0.00025855,2]
[422490554,1778993448000,-200.0,0.00025855,2]
[422490555,1778993448000,-619.95,0.000259,7]
[422490557,1778993448000,-151.0,0.00025996,7]
[422490558,1778993448000,-1398.48678554,0.00025999,2]
[422490556,1778993448000,-151.0,0.00025996,7]
[422490573,1778993823000,164.68,0.00020199,2]
[422490572,1778993823000,164.68,0.00017379,2]
[422490571,1778993823000,164.68,0.00014559,2]
[422490570,1778993823000,164.68,0.00011739,2]
[422490576,1778993956000,2000.0,0.00028619,120]
[422490577,1778994000000,152.0,0.0002,2]
[422490578,1778994002000,152.0,0.00021,2]
[422490579,1778994003000,1580.18,0.0001,2]
[422490581,1778994051000,214.0,0.0002,2]
[422490582,1778994053000,214.0,0.00021,2]
[422490586,1778994197000,250.0,0.00014,2]
[422490590,1778994220000,296.0,0.0002,2]
[422490591,1778994221000,296.0,0.00021,2]
[422490592,1778994245000,809.34080542,0.0001611,15]
[422490595,1778994271000,9190.66919458,0.00018,2]
[422490594,1778994271000,5000.01,0.00018,2]
[422490593,1778994271000,5000.01,0.00018,2]
[422490596,1778994272000,10000.01,0.00018,2]
[422490597,1778994272000,3481.48009073,0.00018,2]
[422490598,1778994276000,5000.01,0.00015,2]
[422490602,1778994276000,10000.01,0.00015,2]
[422490603,1778994276000,10000.01,0.00015,2]
[422490600,1778994276000,6518.52990927,0.00015,2]
[422490601,1778994276000,10000.01,0.00015,2]
[422490599,1778994276000,5000.01,0.00015,2]
[422490604,1778994356000,-299.84,0.00015,2]
[422490605,1778994409000,-452.02059836,0.00014924,2]
[422490606,1778994541000,1000.0,0.00030128,120]
[422490622,1778994632000,-505.70250726,0.00014999,2]
[422490620,1778994632000,-561.36,0.00014999,2]
[422490619,1778994632000,-327.24230004,0.00014999,2]
[422490616,1778994632000,-168.71,0.0001046,2]
[422490621,1778994632000,-115.44941784,0.00014999,2]
[422490618,1778994632000,-250.0,0.00014961,2]
[422490617,1778994632000,-19.04243764,0.00014924,2]
[422490642,1778994638000,-433.0,0.00017339,2]
[422490641,1778994638000,-1680.0,0.00016499,2]
[422490644,1778994638000,-2351.0,0.00018149,2]
[422490654,1778994638000,-1252.0,0.00020024,2]
[422490650,1778994638000,-452.95,0.00019829,2]
[422490647,1778994638000,-172.02087918,0.00019268,3]
[422490645,1778994638000,-736.0,0.00018629,2]
[422490640,1778994638000,-279.34,0.00016438,2]
[422490649,1778994638000,-354.60770475,0.00019729,2]
[422490653,1778994638000,-152.0,0.0002,2]
[422490643,1778994638000,-2521.72,0.00017728,2]
[422490639,1778994638000,-250.0,0.00016416,2]
[422490637,1778994638000,-300.0,0.00016416,2]
[422490636,1778994638000,-255.0,0.00016124,2]
[422490646,1778994638000,-194.04175838,0.00018891,3]
[422490635,1778994638000,-150.0,0.00016117,2]
[422490634,1778994638000,-188.75467981,0.00015,2]
[422490633,1778994638000,-135820.40349345,0.00015,2]
[422490630,1778994638000,-22883.54542558,0.00015,2]
[422490629,1778994638000,-1200.0,0.00014999,2]
[422490631,1778994638000,-256.66405223,0.00015,2]
[422490632,1778994638000,-458.21523207,0.00015,2]
[422490628,1778994638000,-300.0,0.00014999,2]
[422490626,1778994638000,-494.29749274,0.00014999,2]
[422490627,1778994638000,-150.0,0.00014999,2]
[422490638,1778994638000,-250.0,0.00016416,2]
[422490651,1778994638000,-3292.0,0.00019964,2]
[422490681,1778994638000,-296.0,0.00022,2]
[422490652,1778994638000,-600.0,0.0002,2]
[422490648,1778994638000,-324.14,0.00019652,2]
[422490678,1778994638000,-4609.0,0.0002196,2]
[422490672,1778994638000,-199.39128111,0.00021499,21]
[422490675,1778994638000,-1953.41,0.00021748,2]
[422490676,1778994638000,-470.0,0.00021824,2]
[422490674,1778994638000,-174.62,0.00021718,2]
[422490679,1778994638000,-152.0,0.00022,2]
[422490673,1778994638000,-2129.0,0.00021539,2]
[422490671,1778994638000,-277.8,0.00021409,2]
[422490680,1778994638000,-214.0,0.00022,2]
[422490669,1778994638000,-1953.41,0.0002123,2]
[422490670,1778994638000,-771.92,0.00021408,2]
[422490668,1778994638000,-166.66,0.00021185,2]
[422490677,1778994638000,-289.1877375,0.00021918,3]
[422490662,1778994638000,-1953.41,0.00020712,2]
[422490666,1778994638000,-152.0,0.00021,2]
[422490655,1778994638000,-227.29,0.00020042,2]
[422490657,1778994638000,-168.71,0.0002051,2]
[422490667,1778994638000,-525.27670665,0.00021,2]
[422490656,1778994638000,-150.0,0.00020147,2]
[422490660,1778994638000,-3842.85,0.00020548,2]
[422490659,1778994638000,-3842.85,0.00020548,2]
[422490661,1778994638000,-19034.97,0.00020573,2]
[422490664,1778994638000,-150.0,0.000209,2]
[422490665,1778994638000,-1000.0,0.00020999,2]
[422490663,1778994638000,-150.0,0.000209,2]
[422490658,1778994638000,-3842.85,0.00020548,2]
[422490762,1778994639000,-500.0,0.00023222,2]
[422490764,1778994639000,-292.16782239,0.00023222,2]
[422490760,1778994639000,-500.0,0.00023222,2]
[422490759,1778994639000,-500.0,0.00023222,2]
[422490761,1778994639000,-500.0,0.00023222,2]
[422490754,1778994639000,-500.0,0.00023199,2]
[422490757,1778994639000,-151.0,0.0002322,7]
[422490756,1778994639000,-151.0,0.0002322,7]
[422490738,1778994639000,-296.0,0.00023,2]
[422490752,1778994639000,-2749.0,0.00023143,2]
[422490750,1778994639000,-2805.00325221,0.00023088,2]
[422490763,1778994639000,-500.0,0.00023222,2]
[422490758,1778994639000,-500.0,0.00023222,2]
[422490769,1778994639000,-500.0,0.00023222,2]
[422490772,1778994639000,-500.0,0.00023222,2]
[422490768,1778994639000,-500.0,0.00023222,2]
[422490779,1778994639000,-500.0,0.00023222,2]
[422490778,1778994639000,-345.77292724,0.00023222,2]
[422490744,1778994639000,-166.22900262,0.00023088,2]
[422490774,1778994639000,-500.0,0.00023222,2]
[422490776,1778994639000,-500.0,0.00023222,2]
[422490775,1778994639000,-500.0,0.00023222,2]
[422490770,1778994639000,-500.0,0.00023222,2]
[422490777,1778994639000,-500.0,0.00023222,2]
[422490783,1778994639000,-500.0,0.00023222,2]
[422490773,1778994639000,-500.0,0.00023222,2]
[422490771,1778994639000,-500.0,0.00023222,2]
[422490767,1778994639000,-500.0,0.00023222,2]
[422490765,1778994639000,-500.0,0.00023222,2]
[422490766,1778994639000,-500.0,0.00023222,2]
[422490784,1778994639000,-500.0,0.00023222,2]
[422490740,1778994639000,-152.0,0.00023,2]
[422490712,1778994639000,-300.0,0.000227,8]
[422490755,1778994639000,-1329.47565585,0.00023213,2]
[422490780,1778994639000,-500.0,0.00023222,2]
[422490682,1778994639000,-152.0,0.00022,2]
[422490694,1778994639000,-294.81599744,0.00022407,2]
[422490698,1778994639000,-161.95,0.00022428,2]
[422490685,1778994639000,-177.4,0.00022082,2]
[422490700,1778994639000,-200.0,0.00022591,2]
[422490687,1778994639000,-234.58999999,0.00022241,2]
[422490683,1778994639000,-580.0,0.00022003,2]
[422490702,1778994639000,-5000.0,0.0002263,2]
[422490696,1778994639000,-500.0,0.00022407,2]
[422490692,1778994639000,-151.0,0.00022353,2]
[422490704,1778994639000,-1644.37,0.00022669,2]
[422490706,1778994639000,-245.87,0.00022677,2]
[422490690,1778994639000,-1953.41,0.00022266,2]
[422490742,1778994639000,-2301.0,0.00023,2]
[422490708,1778994639000,-500.0,0.00022681,2]
[422490720,1778994639000,-600.0,0.000228,8]
[422490722,1778994639000,-2000.0,0.00022896,2]
[422490718,1778994639000,-600.0,0.000228,8]
[422490724,1778994639000,-900.0,0.000229,8]
[422490726,1778994639000,-900.0,0.000229,8]
[422490728,1778994639000,-166.67,0.00022907,2]
[422490714,1778994639000,-200.0,0.00022706,2]
[422490716,1778994639000,-1953.41,0.00022783,2]
[422490732,1778994639000,-234.58999999,0.00022977,2]
[422490730,1778994639000,-500.0,0.00022955,2]
[422490734,1778994639000,-152.0,0.00023,2]
[422490736,1778994639000,-214.0,0.00023,2]
[422490746,1778994639000,-2798.68773875,0.00023088,2]
[422490748,1778994639000,-5865.75645904,0.00023088,2]
[422490710,1778994639000,-300.0,0.000227,8]
[422490782,1778994639000,-500.0,0.00023222,2]
[422490843,1778994639000,-99103.5589,0.000238,2]
[422490785,1778994639000,-500.0,0.00023222,2]
[422490813,1778994639000,-500.0,0.00023222,2]
[422490824,1778994639000,-500.0,0.00023222,2]
[422490820,1778994639000,-500.0,0.00023222,2]
[422490821,1778994639000,-500.0,0.00023222,2]
[422490823,1778994639000,-500.0,0.00023222,2]
[422490825,1778994639000,-500.0,0.00023222,2]
[422490832,1778994639000,-160.93,0.00023245,2]
[422490827,1778994639000,-500.0,0.00023222,2]
[422490830,1778994639000,-500.0,0.00023222,2]
[422490838,1778994639000,-161.24934827,0.000237,2]
[422490837,1778994639000,-10276.8416,0.000237,2]
[422490828,1778994639000,-200.00000001,0.00023222,2]
[422490829,1778994639000,-500.0,0.00023222,2]
[422490826,1778994639000,-500.0,0.00023222,2]
[422490822,1778994639000,-500.0,0.00023222,2]
[422490833,1778994639000,-2080.17592889,0.00023309,2]
[422490836,1778994639000,-180.54,0.00023576,2]
[422490831,1778994639000,-1500000.0,0.00023223,2]
[422490834,1778994639000,-32916.7278419,0.00023323,2]
[422490840,1778994639000,-500.0,0.00023777,2]
[422490841,1778994639000,-151.0,0.00023797,7]
[422490842,1778994639000,-500.0,0.00023799,2]
[422490849,1778994639000,-198.74800321,0.00023876,4]
[422490844,1778994639000,-1200.0,0.000238,8]
[422490846,1778994639000,-1733.87307324,0.00023857,2]
[422490847,1778994639000,-2500.0,0.00023874,2]
[422490848,1778994639000,-5000.0,0.00023874,2]
[422490850,1778994639000,-500.0,0.00023899,2]
[422490845,1778994639000,-1300.0,0.000238,8]
[422490781,1778994639000,-500.0,0.00023222,2]
[422490839,1778994639000,-234.59,0.00023714,2]
[422490818,1778994639000,-500.0,0.00023222,2]
[422490835,1778994639000,-500.0,0.00023503,2]
[422490816,1778994639000,-500.0,0.00023222,2]
[422490787,1778994639000,-500.0,0.00023222,2]
[422490819,1778994639000,-500.0,0.00023222,2]
[422490788,1778994639000,-500.0,0.00023222,2]
[422490790,1778994639000,-500.0,0.00023222,2]
[422490791,1778994639000,-500.0,0.00023222,2]
[422490789,1778994639000,-500.0,0.00023222,2]
[422490792,1778994639000,-500.0,0.00023222,2]
[422490794,1778994639000,-500.0,0.00023222,2]
[422490786,1778994639000,-500.0,0.00023222,2]
[422490793,1778994639000,-500.0,0.00023222,2]
[422490796,1778994639000,-500.0,0.00023222,2]
[422490798,1778994639000,-500.0,0.00023222,2]
[422490797,1778994639000,-500.0,0.00023222,2]
[422490800,1778994639000,-500.0,0.00023222,2]
[422490810,1778994639000,-500.0,0.00023222,2]
[422490795,1778994639000,-500.0,0.00023222,2]
[422490804,1778994639000,-500.0,0.00023222,2]
[422490817,1778994639000,-500.0,0.00023222,2]
[422490801,1778994639000,-500.0,0.00023222,2]
[422490814,1778994639000,-500.0,0.00023222,2]
[422490812,1778994639000,-500.0,0.00023222,2]
[422490807,1778994639000,-500.0,0.00023222,2]
[422490808,1778994639000,-500.0,0.00023222,2]
[422490809,1778994639000,-500.0,0.00023222,2]
[422490815,1778994639000,-500.0,0.00023222,2]
[422490805,1778994639000,-500.0,0.00023222,2]
[422490803,1778994639000,-500.0,0.00023222,2]
[422490811,1778994639000,-615.59361345,0.00023222,2]
[422490799,1778994639000,-500.0,0.00023222,2]
[422490802,1778994639000,-500.0,0.00023222,2]
[422490806,1778994639000,-500.0,0.00023222,2]
[422490902,1778994640000,-271.25,0.00023976,2]
[422490893,1778994640000,-500.0,0.00023973,2]
[422490900,1778994640000,-500.0,0.00023973,2]
[422490896,1778994640000,-500.0,0.00023973,2]
[422490892,1778994640000,-500.0,0.00023973,2]
[422490886,1778994640000,-502.6269472,0.00023973,2]
[422490887,1778994640000,-500.0,0.00023973,2]
[422490888,1778994640000,-213.32800583,0.00023973,2]
[422490883,1778994640000,-500.0,0.00023973,2]
[422490884,1778994640000,-500.0,0.00023973,2]
[422490885,1778994640000,-505.1114487,0.00023973,2]
[422490899,1778994640000,-500.0,0.00023973,2]
[422490889,1778994640000,-501.91072122,0.00023973,2]
[422490905,1778994640000,-296.0,0.00024,2]
[422490916,1778994640000,-500.0,0.00024067,2]
[422490901,1778994640000,-2500000.0,0.00023974,2]
[422490904,1778994640000,-214.0,0.00024,2]
[422490897,1778994640000,-500.0,0.00023973,2]
[422490898,1778994640000,-500.0,0.00023973,2]
[422490903,1778994640000,-156.0,0.00024,2]
[422490907,1778994640000,-922.91,0.00024,7]
[422490917,1778994640000,-1923.0,0.00024067,2]
[422490918,1778994640000,-500.0,0.00024067,2]
[422490906,1778994640000,-152.0,0.00024,2]
[422490908,1778994640000,-161.24934823,0.00024,2]
[422490911,1778994640000,-161.95,0.0002403,2]
[422490913,1778994640000,-1923.0,0.00024067,2]
[422490912,1778994640000,-500.0,0.00024051,2]
[422490882,1778994640000,-500.0,0.00023973,2]
[422490895,1778994640000,-500.0,0.00023973,2]
[422490881,1778994640000,-500.0,0.00023973,2]
[422490851,1778994640000,-1344.76957664,0.000239,2]
[422490891,1778994640000,-500.0,0.00023973,2]
[422490909,1778994640000,-200.952461,0.00024009,14]
[422490852,1778994640000,-1500.0,0.000239,8]
[422490854,1778994640000,-175.68466802,0.000239,2]
[422490853,1778994640000,-1600.0,0.000239,8]
[422490865,1778994640000,-500.0,0.00023973,2]
[422490864,1778994640000,-500.0,0.00023973,2]
[422490856,1778994640000,-188.0,0.00023945,2]
[422490858,1778994640000,-1329.47565585,0.00023964,2]
[422490860,1778994640000,-500.0,0.00023973,2]
[422490855,1778994640000,-11916.80084932,0.000239,2]
[422490857,1778994640000,-153.12137068,0.00023954,2]
[422490859,1778994640000,-151.0,0.00023971,7]
[422490862,1778994640000,-581.94842131,0.00023973,2]
[422490861,1778994640000,-523.84162786,0.00023973,2]
[422490879,1778994640000,-150.0,0.00023973,2]
[422490863,1778994640000,-500.0,0.00023973,2]
[422490868,1778994640000,-241.7587591,0.00023973,2]
[422490867,1778994640000,-500.0,0.00023973,2]
[422490870,1778994640000,-500.0,0.00023973,2]
[422490877,1778994640000,-500.0,0.00023973,2]
[422490873,1778994640000,-500.0,0.00023973,2]
[422490871,1778994640000,-500.0,0.00023973,2]
[422490878,1778994640000,-450.0,0.00023973,2]
[422490869,1778994640000,-500.0,0.00023973,2]
[422490874,1778994640000,-500.0,0.00023973,2]
[422490872,1778994640000,-427.19117758,0.00023973,2]
[422490876,1778994640000,-500.0,0.00023973,2]
[422490875,1778994640000,-500.0,0.00023973,2]
[422490880,1778994640000,-375.48613759,0.00023973,2]
[422490890,1778994640000,-500.0,0.00023973,2]
[422490866,1778994640000,-500.0,0.00023973,2]
[422490915,1778994640000,-1923.0,0.00024067,2]
[422490922,1778994640000,-500.0,0.00024067,2]
[422490910,1778994640000,-222.828829,0.00024009,14]
[422490950,1778994640000,-500.0,0.00024067,2]
[422490948,1778994640000,-1923.0,0.00024067,2]
[422490951,1778994640000,-500.0,0.00024067,2]
[422490954,1778994640000,-1923.0,0.00024067,2]
[422490952,1778994640000,-1923.0,0.00024067,2]
[422490960,1778994640000,-1923.0,0.00024067,2]
[422490964,1778994640000,-500.0,0.00024067,2]
[422490962,1778994640000,-1923.0,0.00024067,2]
[422490963,1778994640000,-1937.97526556,0.00024067,2]
[422490965,1778994640000,-500.0,0.00024067,2]
[422490968,1778994640000,-150.0,0.00024067,2]
[422490967,1778994640000,-399.51761842,0.00024067,2]
[422490971,1778994640000,-500.0,0.00024067,2]
[422490970,1778994640000,-500.0,0.00024067,2]
[422490969,1778994640000,-500.0,0.00024067,2]
[422490961,1778994640000,-1923.0,0.00024067,2]
[422490966,1778994640000,-500.0,0.00024067,2]
[422490973,1778994640000,-500.0,0.00024067,2]
[422490972,1778994640000,-500.0,0.00024067,2]
[422490975,1778994640000,-500.0,0.00024067,2]
[422490977,1778994640000,-333.81947397,0.00024067,2]
[422490976,1778994640000,-500.0,0.00024067,2]
[422490983,1778994640000,-500.0,0.00024067,2]
[422490980,1778994640000,-150.0,0.00024067,2]
[422490914,1778994640000,-1923.0,0.00024067,2]
[422490974,1778994640000,-500.0,0.00024067,2]
[422490979,1778994640000,-181.11697857,0.00024067,2]
[422490982,1778994640000,-500.0,0.00024067,2]
[422490981,1778994640000,-241.21762394,0.00024067,2]
[422490949,1778994640000,-500.0,0.00024067,2]
[422490953,1778994640000,-500.0,0.00024067,2]
[422490978,1778994640000,-500.0,0.00024067,2]
[422490956,1778994640000,-1923.0,0.00024067,2]
[422490955,1778994640000,-500.0,0.00024067,2]
[422490919,1778994640000,-1923.0,0.00024067,2]
[422490920,1778994640000,-500.0,0.00024067,2]
[422490923,1778994640000,-1923.0,0.00024067,2]
[422490924,1778994640000,-150.0,0.00024067,2]
[422490930,1778994640000,-1923.0,0.00024067,2]
[422490926,1778994640000,-1923.0,0.00024067,2]
[422490933,1778994640000,-150.0,0.00024067,2]
[422490925,1778994640000,-500.0,0.00024067,2]
[422490932,1778994640000,-500.0,0.00024067,2]
[422490931,1778994640000,-150.0,0.00024067,2]
[422490928,1778994640000,-500.0,0.00024067,2]
[422490927,1778994640000,-150.0,0.00024067,2]
[422490935,1778994640000,-1923.0,0.00024067,2]
[422490943,1778994640000,-500.0,0.00024067,2]
[422490921,1778994640000,-1923.0,0.00024067,2]
[422490944,1778994640000,-1923.0,0.00024067,2]
[422490945,1778994640000,-500.0,0.00024067,2]
[422490946,1778994640000,-1923.0,0.00024067,2]
[422490957,1778994640000,-500.0,0.00024067,2]
[422490958,1778994640000,-1923.0,0.00024067,2]
[422490947,1778994640000,-500.0,0.00024067,2]
[422490941,1778994640000,-1923.0,0.00024067,2]
[422490959,1778994640000,-220.0,0.00024067,2]
[422490938,1778994640000,-1923.0,0.00024067,2]
[422490942,1778994640000,-1923.0,0.00024067,2]
[422490940,1778994640000,-500.0,0.00024067,2]
[422490936,1778994640000,-150.0,0.00024067,2]
[422490937,1778994640000,-500.0,0.00024067,2]
[422490939,1778994640000,-235.03207444,0.00024067,2]
[422490934,1778994640000,-500.0,0.00024067,2]
[422491017,1778994641000,-500.0,0.00024229,2]
[422491019,1778994641000,-4783.01995285,0.00024293,2]
[422491018,1778994641000,-900.0,0.00024269,2]
[422491025,1778994641000,-4783.01995285,0.0002438,2]
[422491036,1778994641000,-483.44966111,0.00024645,2]
[422491024,1778994641000,-557.11907696,0.00024325,2]
[422491013,1778994641000,-790.13,0.00024174,2]
[422491016,1778994641000,-3753.96495443,0.0002421,2]
[422491014,1778994641000,-2132.26,0.00024174,2]
[422491015,1778994641000,-4783.01995285,0.00024206,2]
[422491023,1778994641000,-151.0,0.00024324,2]
[422491022,1778994641000,-161.24934823,0.000243,2]
[422491031,1778994641000,-190.30659137,0.00024571,2]
[422491021,1778994641000,-2000.0,0.000243,2]
[422491027,1778994641000,-4783.01995285,0.00024467,2]
[422491026,1778994641000,-234.59,0.00024451,2]
[422491030,1778994641000,-4783.01995285,0.00024554,2]
[422491035,1778994641000,-500.0,0.00024645,2]
[422491028,1778994641000,-10433.68774508,0.00024499,2]
[422491034,1778994641000,-500.0,0.00024645,2]
[422491033,1778994641000,-500.0,0.00024645,2]
[422491029,1778994641000,-8240.4009,0.00024546,2]
[422491032,1778994641000,-161.24934823,0.000246,2]
[422491012,1778994641000,-418.05,0.00024174,2]
[422491020,1778994641000,-2026.8572,0.000243,2]
[422491008,1778994641000,-1105.18419788,0.00024073,10]
[422490999,1778994641000,-150.0,0.00024067,2]
[422491010,1778994641000,-6453.0,0.00024156,2]
[422490985,1778994641000,-500.0,0.00024067,2]
[422490987,1778994641000,-441.19250183,0.00024067,2]
[422490986,1778994641000,-500.0,0.00024067,2]
[422490984,1778994641000,-500.0,0.00024067,2]
[422490988,1778994641000,-150.0,0.00024067,2]
[422490991,1778994641000,-500.0,0.00024067,2]
[422490992,1778994641000,-500.0,0.00024067,2]
[422490990,1778994641000,-500.0,0.00024067,2]
[422490989,1778994641000,-176.41211955,0.00024067,2]
[422490993,1778994641000,-555.78017469,0.00024067,2]
[422490995,1778994641000,-500.0,0.00024067,2]
[422491007,1778994641000,-151.0,0.00024071,7]
[422490994,1778994641000,-500.0,0.00024067,2]
[422490996,1778994641000,-150.0,0.00024067,2]
[422490997,1778994641000,-243.06675581,0.00024067,2]
[422491001,1778994641000,-160.0,0.00024067,2]
[422491011,1778994641000,-2451.92,0.00024174,2]
[422491000,1778994641000,-299.93318737,0.00024067,2]
[422491003,1778994641000,-151.0,0.00024071,7]
[422491002,1778994641000,-160.34130374,0.00024067,2]
[422491005,1778994641000,-151.0,0.00024071,7]
[422491006,1778994641000,-151.0,0.00024071,7]
[422491009,1778994641000,-4783.01995285,0.00024119,2]
[422491004,1778994641000,-151.0,0.00024071,7]
[422490998,1778994641000,-150.0,0.00024067,2]
[422491037,1778994641000,-151.0,0.00024651,7]
[422491059,1778994641000,-167.528222,0.00024654,2]
[422491038,1778994641000,-300.0,0.00024653,2]
[422491064,1778994641000,-151.0,0.00024654,2]